bitfinex-derivatives/quotes_SOLF0:USTF0_20241021
["timestamp","ask_amount","ask_price","bid_price","bid_amount"]
[1729468800612,49.4145,167.49,167.38,6.90563006]
[1729468802912,49.4145,167.49,167.39,1.49381031]
[1729468803118,49.4145,167.49,167.4,1.49381031]
[1729468803309,49.4145,167.49,167.38,6.90563006]
[1729468803310,49.4145,167.49,167.39,1.49381031]
[1729468803511,49.4145,167.49,167.38,6.90563006]
[1729468803713,49.4145,167.49,167.39,1.49385562]
[1729468803917,49.4145,167.49,167.4,1.49385562]
[1729468804215,49.4145,167.49,167.39,1.49385562]
[1729468804415,49.4145,167.49,167.4,1.49385562]
[1729468804615,49.4145,167.49,167.41,1.49385562]
[1729468804816,49.4145,167.49,167.4,5.81505261]
[1729468805016,49.4145,167.49,167.41,1.49385562]
[1729468805316,49.4145,167.49,167.4,4.32119699]
[1729468805518,49.4145,167.49,167.41,1.4936924]
[1729468805719,49.4145,167.49,167.42,1.493642]
[1729468806019,49.4145,167.49,167.41,4.32119699]
[1729468806220,49.4145,167.49,167.38,6.90563006]
[1729468806221,49.4145,167.49,167.42,1.49361849]
[1729468806418,47.09550931,167.49,167.43,1.49361849]
[1729468806617,43.12180931,167.49,167.44,1.49361849]
[1729468806811,40.68660931,167.49,167.45,1.49361849]
[1729468807119,40.68660931,167.49,167.46,1.49361849]
[1729468807319,37.68660931,167.49,167.47,5.81175513]
[1729468807519,37.68660931,167.49,167.48,5.81175513]
[1729468808021,37.68660931,167.49,167.48,3.017268]
[1729468808223,37.68660931,167.49,167.45,5.81175513]
[1729468808414,37.68660931,167.49,167.46,1.49361849]
[1729468808616,37.68660931,167.49,167.47,1.49361849]
[1729468808815,37.68660931,167.49,167.46,1.49361849]
[1729468809015,37.68660931,167.49,167.47,5.81175513]
[1729468809322,37.68660931,167.49,167.48,5.81175513]
[1729468809520,37.68660931,167.49,167.48,1.49361849]
[1729468809720,31.78660931,167.49,167.48,5.81175513]
[1729468810018,31.78660931,167.49,167.48,4.439458]
[1729468810217,31.78660931,167.49,167.48,8.75059915]
[1729468810412,28.88660931,167.49,167.48,1.49361849]
[1729468810819,28.88660931,167.49,167.48,5.80475964]
[1729468811014,28.88660931,167.49,167.48,8.76045245]
[1729468811218,28.88660931,167.49,167.48,1.49361849]
[1729468811520,25.98660931,167.49,167.43,5.80475964]
[1729468811821,25.98660931,167.49,167.44,5.80475964]
[1729468812018,23.18660931,167.49,167.45,1.49361849]
[1729468812221,23.18660931,167.49,167.46,1.49361849]
[1729468812413,23.18660931,167.49,167.47,1.49361849]
[1729468812618,23.18660931,167.49,167.46,4.31114115]
[1729468812818,23.18660931,167.49,167.44,2.92152997]
[1729468812819,23.18660931,167.49,167.47,1.49324356]
[1729468813012,20.28660931,167.49,167.48,1.49322947]
[1729468813518,20.28660931,167.49,167.47,3.01320103]
[1729468813725,20.28660931,167.49,167.48,1.49321972]
[1729468814427,20.28660931,167.49,167.48,8.87321972]
[1729468814623,17.18660931,167.49,167.48,13.1842995]
[1729468814919,17.18660931,167.49,167.48,8.87321972]
[1729468815126,17.18660931,167.49,167.48,16.18406341]
[1729468815315,17.18660931,167.49,167.48,11.87298363]
[1729468816023,17.18660931,167.49,167.48,16.18406341]
[1729468816225,17.18660931,167.49,167.48,11.87298363]
[1729468816527,17.18660931,167.49,167.48,11.87274874]
[1729468816927,17.18660931,167.49,167.48,16.17848859]
[1729468817126,14.28660931,167.49,167.48,7.38]
[1729468817326,14.28660931,167.49,167.48,13.17551907]
[1729468817518,14.28660931,167.49,167.48,7.38]
[1729468817724,14.28660931,167.49,167.48,11.85400392]
[1729468818426,2.47190931,167.49,167.48,31.16531078]
[1729468818630,9.31e-06,167.49,167.48,31.16531078]
[1729468819025,9.31e-06,167.49,167.48,34.16161252]
[1729468820125,3.9503,167.68,167.48,34.16161252]
[1729468820430,71.86,167.8,167.5,35.99]
[1729468820625,2.6166,167.72,167.51,1.49274761]
[1729468820926,2.6166,167.72,167.52,19.48227242]
[1729468821132,2.6166,167.72,167.52,23.78483559]
[1729468821133,1.2826,167.71,167.52,23.78483559]
[1729468821429,1.2826,167.71,167.54,17.99]
[1729468821729,1.2826,167.71,167.55,1.49227242]
[1729468821931,1.2826,167.71,167.56,1.49227242]
[1729468823027,1.2826,167.71,167.57,1.49227242]
[1729468823226,1.2826,167.71,167.57,23.78483559]
[1729468823428,1.2826,167.71,167.58,23.78483559]
[1729468823733,1.2826,167.71,167.59,13.17483559]
[1729468823940,1.2826,167.71,167.59,16.22680898]
[1729468824231,1.2826,167.71,167.59,11.92379659]
[1729468824926,17.92,167.85,167.59,29.91379659]
[1729468825124,29.3122,167.84,167.6,5.76078547]
[1729468825431,17.92,167.82,167.61,7.38]
[1729468827823,17.92,167.82,167.6,1.49156542]
[1729468828030,17.92,167.82,167.58,131.86639024]
[1729468828031,17.92,167.82,167.61,7.38]
[1729468828226,17.92,167.82,167.61,2.97990291]
[1729468828435,17.92,167.82,167.62,7.38]
[1729468828634,17.92,167.82,167.62,10.40708945]
[1729468830331,2.981,167.76,167.62,10.40708945]
[1729468830544,3.8829,167.75,167.62,10.40708945]
[1729468831234,2.9816,167.72,167.62,3.02708945]
[1729468831439,2.9816,167.72,167.63,2.983]
[1729468831633,2.9816,167.72,167.63,2.93090048]
[1729468831837,2.9816,167.72,167.59,7.38]
[1729468832333,2.9816,167.72,167.59,10.3842998]
[1729468832932,3.8829,167.75,167.64,2.983]
[1729468833137,2.9815,167.73,167.64,2.983]
[1729468833934,21.8029,167.75,167.59,10.3842998]
[1729468834840,2.9816,167.72,167.59,10.3842998]
[1729468835339,2.9816,167.72,167.63,2.983]
[1729468835734,227.0,167.98,167.65,17.89]
[1729468835934,227.0,167.98,167.59,17.92]
[1729468835935,1.3092,167.97,167.66,7.06]
[1729468836139,4.2202343,167.97,167.67,7.06]
[1729468836338,2.9797,167.83,167.72,2.9814]
[1729468836642,1.3092,167.82,167.67,7.06]
[1729468838141,4.289,167.82,167.72,2.9814]
[1729468838441,19.2292,167.82,167.68,7.06]
[1729468838642,2.9803,167.8,167.69,2.982]
[1729468839039,2.9803,167.8,167.68,10.06835348]
[1729468839346,7.06,167.79,167.67,7.06]
[1729468839745,7.06,167.79,167.72,2.9815]
[1729468840344,7.06,167.79,167.73,2.9812]
[1729468840541,1.3092,167.82,167.67,7.06]
[1729468841235,2.6576,167.81,167.64,2.94811484]
[1729468841441,9.7176,167.81,167.65,1.09598206]
[1729468841638,9.7176,167.81,167.66,7.06]
[1729468842037,2.9804,167.79,167.69,2.9821]
[1729468842236,2.9804,167.79,167.69,3.01348041]
[1729468842441,27.6376,167.81,167.61,1.2514]
[1729468842641,27.6376,167.81,167.62,7.06]
[1729468842834,2.9814,167.73,167.61,2.9834]
[1729468843034,8.3648,167.72,167.61,2.9834]
[1729468843243,8.3648,167.72,167.59,2.99678358]
[1729468843542,8.3648,167.72,167.58,138.92639024]
[1729468843837,26.2848,167.72,167.58,134.87182039]
[1729468844043,26.2848,167.72,167.58,132.81462039]
[1729468844540,2.9824,167.68,167.59,2.9837]
[1729468844844,7.06,167.67,167.58,132.81462039]
[1729468845246,7.06,167.67,167.59,2.9837]
[1729468846636,7.06,167.67,167.6,2.9837]
[1729468847450,1.368,167.66,167.6,2.9837]
[1729468848742,1.368,167.66,167.58,132.81462039]
[1729468849042,1.368,167.66,167.62,2.9833]
[1729468849454,1.368,167.66,167.64,2.9829]
[1729468849947,2.6451,167.66,167.64,2.9829]
[1729468850144,2.6451,167.66,167.58,132.81462039]
[1729468850345,2.6451,167.66,167.65,2.9828]
[1729468851344,2.6451,167.66,167.6,7.06]
[1729468851540,2.6451,167.66,167.58,132.81462039]
[1729468851946,2.6451,167.66,167.6,2.9835]
[1729468852349,2.6451,167.66,167.58,132.81462039]
[1729468852550,2.6451,167.66,167.59,2.9838]
[1729468853245,5.6277,167.66,167.57,2.9842]
[1729468853643,2.6451,167.66,167.5,1.2827]
[1729468853843,2.9836,167.61,167.52,2.985]
[1729468854048,2.6451,167.66,167.53,2.96377659]
[1729468854347,2.984,167.59,167.53,2.98526188]
[1729468854551,2.5432,167.58,167.48,7.06]
[1729468854752,2.5432,167.58,167.47,3.01289977]
[1729468854948,2.9844,167.56,167.47,2.9859]
[1729468855150,2.9844,167.56,167.47,3.0346956]
[1729468855446,2.9844,167.56,167.47,2.9859]
[1729468855651,10.0443,167.57,167.43,13.88566378]
[1729468856063,10.0443,167.57,167.47,2.986]
[1729468856349,2.9845,167.56,167.47,2.986]
[1729468856554,4.2805,167.56,167.47,2.986]
[1729468857046,1.296,167.56,167.47,2.986]
[1729468857254,1.296,167.56,167.43,13.88566378]
[1729468857951,1.296,167.56,167.44,7.06]
[1729468858746,7.06,167.56,167.44,7.06]
[1729468859455,7.06,167.56,167.47,2.9859]
[1729468860546,10.0444,167.56,167.47,2.9859]
[1729468860754,10.0444,167.56,167.46,2.9862]
[1729468861353,10.0444,167.56,167.47,2.9858]
[1729468861654,10.0444,167.56,167.44,10.09942006]
[1729468862452,10.0444,167.56,167.48,2.9858]
[1729468862753,7.06,167.56,167.48,2.9858]
[1729468862954,2.9846,167.55,167.48,2.9858]
[1729468864154,2.9851,167.53,167.45,2.9862]
[1729468864353,2.9851,167.53,167.44,10.09942006]
[1729468864354,3.3229,167.55,167.44,3.03942006]
[1729468864552,21.2429,167.55,167.37,7.08]
[1729468864859,2.986,167.48,167.41,2.987]
[1729468865058,7.08,167.49,167.37,10.05748262]
[1729468865755,7.08,167.49,167.44,2.9865]
[1729468867653,7.08,167.49,167.37,10.05748262]
[1729468867654,3.3229,167.55,167.37,10.05748262]
[1729468867859,6.82,167.52,167.37,10.05748262]
[1729468868366,9.8051,167.52,167.37,10.05748262]
[1729468868858,9.8051,167.52,167.44,2.9864]
[1729468869252,2.9857,167.49,167.37,9.79748262]
[1729468869453,6.82,167.52,167.37,6.82]
[1729468869649,6.82,167.52,167.37,9.77638879]
[1729468870050,6.82,167.52,167.42,2.9868]
[1729468870453,6.82,167.52,167.37,9.77638879]
[1729468871057,9.8051,167.52,167.37,9.77638879]
[1729468871361,6.82,167.52,167.37,9.77638879]
[1729468872065,6.82,167.52,167.37,2.95638879]
[1729468872255,2.9861,167.47,167.39,2.9873]
[1729468872457,6.82,167.46,167.4,3.01792422]
[1729468872654,9.8062,167.46,167.38,2.9875]
[1729468872862,6.82,167.46,167.39,3.03793817]
[1729468873261,6.82,167.46,167.34,4.0598]
[1729468873760,2.9864,167.45,167.34,4.0598]
[1729468873965,2.9864,167.45,167.39,2.9874]
[1729468874264,2.9864,167.45,167.39,5.94221374]
[1729468874959,6.82,167.46,167.42,2.9869]
[1729468875156,6.82,167.46,167.39,2.95481374]
[1729468875362,6.82,167.46,167.34,4.0598]
[1729468876960,9.8063,167.46,167.34,4.0598]
[1729468877161,6.82,167.46,167.34,4.0598]
[1729468877362,6.82,167.46,167.37,2.9877]
[1729468877562,6.82,167.46,167.34,4.0598]
[1729468877961,6.82,167.46,167.34,7.048]
[1729468878270,2.987,167.42,167.34,5.6885]
[1729468878469,6.82,167.41,167.34,5.6885]
[1729468878667,2.9874,167.4,167.32,2.9885]
[1729468878858,6.82,167.41,167.3,8.0937]
[1729468879265,6.82,167.41,167.3,1.2737]
[1729468879459,9.8072,167.41,167.33,2.9884]
[1729468880070,9.8072,167.41,167.34,2.9883]
[1729468880866,6.82,167.41,167.35,2.988]
[1729468881072,6.82,167.41,167.36,2.95893056]
[1729468881266,6.82,167.41,167.3,1.2737]
[1729468881471,6.82,167.41,167.34,2.9883]
[1729468881472,9.8071,167.41,167.34,2.9883]
[1729468882067,6.82,167.41,167.3,1.2737]
[1729468882767,24.74,167.41,167.27,2.9190736]
[1729468882967,24.74,167.41,167.24,6.82]
[1729468883173,24.74,167.41,167.24,9.83393039]
[1729468884175,2.9878,167.37,167.24,9.83393039]
[1729468885472,2.9876,167.38,167.24,9.83393039]
[1729468885773,17.92,167.43,167.24,9.83393039]
[1729468885969,6.82,167.42,167.32,2.9886]
[1729468886174,2.9873,167.4,167.33,2.96554933]
[1729468886378,6.82,167.42,167.24,9.83393039]
[1729468886672,6.82,167.41,167.34,2.9882]
[1729468886869,6.82,167.41,167.34,5.99286411]
[1729468887473,9.8071,167.41,167.34,5.99286411]
[1729468888675,2.9874,167.4,167.33,2.9885]
[1729468888974,2.9874,167.4,167.33,6.03172377]
[1729468889171,6.82,167.41,167.3,3.9484]
[1729468889371,2.9876,167.39,167.32,2.9886]
[1729468889570,2.9876,167.39,167.3,3.9484]
[1729468889770,6.82,167.41,167.3,3.9484]
[1729468890879,2.9878,167.38,167.32,2.9887]
[1729468891378,2.9879,167.37,167.31,2.9888]
[1729468892074,2.9885,167.34,167.28,2.9894]
[1729468892267,6.5,167.35,167.26,6.5]
[1729468893176,6.5,167.37,167.26,6.5]
[1729468893472,6.5,167.38,167.26,6.5]
[1729468893674,6.5,167.39,167.26,6.5]
[1729468894471,2.9878,167.38,167.26,6.5]
[1729468894873,2.9878,167.38,167.3,2.9889]
[1729468895476,2.9878,167.37,167.3,2.9889]
[1729468897182,2.9878,167.37,167.31,2.9889]
[1729468898473,2.9878,167.38,167.31,2.9889]
[1729468899188,6.5,167.38,167.32,2.9885]
[1729468899491,6.5,167.38,167.25,10.4146]
[1729468900286,2.9878,167.37,167.25,10.4146]
[1729468900487,6.5,167.38,167.25,10.4146]
[1729468900882,9.4877,167.38,167.31,2.9888]
[1729468901891,6.5,167.38,167.25,10.4146]
[1729468902093,2.9879,167.37,167.3,2.989]
[1729468903094,2.9879,167.37,167.31,2.9889]
[1729468904894,6.5,167.38,167.25,10.4146]
[1729468905098,2.9878,167.37,167.31,2.9888]
[1729468905995,2.9879,167.37,167.31,2.9888]
[1729468906992,2.9879,167.37,167.32,2.9887]
[1729468907591,2.9881,167.36,167.33,3.04837663]
[1729468907791,6.5,167.38,167.3,2.989]
[1729468908393,2.9883,167.35,167.3,2.989]
[1729468909503,2.9883,167.35,167.29,2.989]
[1729468909897,2.988,167.36,167.29,2.989]
[1729468912199,2.988,167.36,167.25,10.4146]
[1729468912395,24.42,167.38,167.25,2.6069]
[1729468912596,3.4306,167.37,167.25,2.6069]
[1729468912795,3.4306,167.37,167.27,2.9895]
[1729468913191,6.16,167.36,167.25,2.6069]
[1729468913596,9.148,167.36,167.25,2.6069]
[1729468913992,64.52,167.44,167.25,2.6069]
[1729468914198,2.9872,167.41,167.25,2.6069]
[1729468914499,82.44,167.44,167.25,2.6069]
[1729468914701,2.9876,167.38,167.26,6.16]
[1729468914893,2.9876,167.38,167.27,1.2509]
[1729468915296,2.9876,167.38,167.3,2.9889]
[1729468915803,2.9876,167.38,167.31,2.9888]
[1729468917305,6.16,167.4,167.27,1.2509]
[1729468917505,64.52,167.44,167.27,1.2509]
[1729468917708,6.16,167.43,167.27,1.2509]
[1729468917903,2.6193,167.49,167.27,19.1409]
[1729468918098,2.6193,167.49,167.29,17.89]
[1729468918304,6.16,167.49,167.29,17.89]
[1729468918696,6.16,167.49,167.42,2.9868]
[1729468919107,2.986,167.47,167.39,2.9873]
[1729468919406,6.16,167.49,167.38,6.16]
[1729468919709,2.986,167.47,167.34,6.16]
[1729468919909,24.08,167.49,167.39,3.03549973]
[1729468920100,1.2933,167.46,167.35,6.81341765]
[1729468920301,1.2389,167.45,167.35,2.93151765]
[1729468920612,24.08,167.44,167.27,3.8819]
[1729468920810,2.9875,167.39,167.31,2.9888]
[1729468921004,6.16,167.38,167.31,2.9888]
[1729468921310,6.16,167.38,167.27,10.0419]
[1729468921311,6.16,167.38,167.3,2.989]
[1729468921606,2.9871,167.41,167.27,10.0419]
[1729468921607,6.16,167.41,167.27,10.0419]
[1729468923107,6.16,167.41,167.31,2.9888]
[1729468923307,2.9865,167.44,167.32,6.16]
[1729468923308,9.1465,167.44,167.32,6.16]
[1729468923502,6.16,167.44,167.32,6.16]
[1729468924309,10.3853,167.45,167.37,2.9877]
[1729468924502,10.3853,167.45,167.37,5.97245702]
[1729468924815,6.16,167.45,167.39,2.9873]
[1729468925011,6.16,167.45,167.37,2.98475702]
[1729468925206,6.16,167.45,167.38,1.26]
[1729468925407,6.16,167.49,167.38,1.26]
[1729468926113,2.986,167.47,167.39,2.9873]
[1729468926510,2.986,167.47,167.38,1.26]
[1729468926813,2.986,167.47,167.4,2.9872]
[1729468927208,6.16,167.49,167.38,1.26]
[1729468927409,2.9854,167.51,167.38,1.26]
[1729468927604,6.16,167.5,167.39,1.49398581]
[1729468927809,6.16,167.5,167.44,2.9865]
[1729468928003,6.16,167.5,167.39,1.49395123]
[1729468928203,6.16,167.5,167.4,1.49395123]
[1729468928511,2.9852,167.52,167.44,2.9864]
[1729468928708,6.16,167.51,167.44,2.9864]
[1729468929512,9.1453,167.51,167.44,2.9864]
[1729468931315,2.6182,167.53,167.45,2.9863]
[1729468931316,5.6032,167.53,167.45,2.9863]
[1729468931514,6.16,167.54,167.42,6.16]
[1729468931713,6.16,167.54,167.43,1.3669]
[1729468932109,6.16,167.54,167.44,1.49360251]
[1729468932312,6.16,167.54,167.48,2.9858]
[1729468932615,6.16,167.54,167.44,1.49362663]
[1729468932919,2.9854,167.51,167.43,4.3535]
[1729468933921,2.9853,167.52,167.44,2.9865]
[1729468935823,2.9853,167.52,167.45,2.9863]
[1729468936121,6.16,167.54,167.45,2.9863]
[1729468936315,2.9853,167.51,167.45,2.9863]
[1729468936511,2.9853,167.51,167.46,2.92753121]
[1729468937617,2.9851,167.52,167.45,2.9863]
[1729468938416,6.16,167.54,167.46,2.97771844]
[1729468938611,2.9856,167.5,167.43,1.3669]
[1729468938824,6.16,167.54,167.43,1.3669]
[1729468939417,2.9853,167.51,167.44,2.9864]
[1729468939724,2.9853,167.51,167.43,1.3669]
[1729468939920,2.9853,167.51,167.45,2.9862]
[1729468940124,2.9853,167.51,167.46,3.06105513]
[1729468940625,2.9847,167.55,167.43,1.3669]
[1729468940826,5.9,167.54,167.43,1.3669]
[1729468942328,8.8848,167.54,167.43,1.3669]
[1729468942925,5.9,167.54,167.43,1.3669]
[1729468943722,2.6088,167.6,167.43,1.3669]
[1729468944024,5.9,167.59,167.44,1.49358006]
[1729468944221,5.9,167.59,167.45,1.49358006]
[1729468944420,5.9,167.59,167.45,5.9]
[1729468944820,2.9847,167.55,167.45,5.9]
[1729468945020,2.9847,167.55,167.46,1.3289]
[1729468945222,2.9847,167.55,167.46,4.34550893]
[1729468945928,2.9847,167.55,167.49,2.9856]
[1729468946518,2.9838,167.6,167.53,2.9849]
[1729468946828,2.9838,167.6,167.46,4.34550893]
[1729468946829,2.9838,167.6,167.47,1.49342492]
[1729468947128,2.9838,167.6,167.46,4.34550893]
[1729468947328,2.9838,167.6,167.52,2.985]
[1729468947931,23.8,167.61,167.47,5.88]
[1729468948123,1.2462,167.59,167.47,5.88]
[1729468948319,2.9845,167.56,167.49,2.9855]
[1729468948524,8.8645,167.56,167.49,2.9855]
[1729468949431,8.8645,167.56,167.5,2.9855]
[1729468949727,5.88,167.56,167.47,5.88]
[1729468949930,5.88,167.56,167.48,1.3417]
[1729468950130,5.88,167.56,167.5,2.9853]
[1729468950533,5.88,167.56,167.47,5.88]
[1729468951831,2.9846,167.55,167.49,2.9856]
[1729468954229,2.9846,167.55,167.5,2.9855]
[1729468954428,5.88,167.56,167.47,5.88]
[1729468954624,5.88,167.59,167.47,5.88]
[1729468954827,2.1138,167.63,167.47,5.88]
[1729468955023,7.2214,167.63,167.48,5.9715]
[1729468955235,1.2563,167.67,167.59,2.9838]
[1729468955538,5.88,167.66,167.54,5.88]
[1729468955730,5.88,167.66,167.55,2.5581]
[1729468955927,5.88,167.66,167.55,6.97012828]
[1729468956530,2.983,167.64,167.56,2.9843]
[1729468956834,2.983,167.64,167.55,6.97012828]
[1729468957032,2.983,167.64,167.57,2.9842]
[1729468958837,2.9821,167.7,167.62,2.9832]
[1729468959037,2.9821,167.7,167.59,5.88]
[1729468959435,1.364,167.72,167.59,5.88]
[1729468959735,7.244,167.72,167.64,2.9828]
[1729468959940,7.244,167.72,167.59,5.88]
[1729468960836,2.9821,167.7,167.63,2.9832]
[1729468962339,2.9821,167.7,167.62,2.9833]
[1729468962542,17.92,167.85,167.59,5.88]
[1729468962841,1.2957,167.78,167.59,5.88]
[1729468963039,7.9974,167.77,167.59,5.88]
[1729468963440,2.9816,167.72,167.65,2.9827]
[1729468963739,2.9816,167.72,167.65,6.02125961]
[1729468963928,2.9816,167.72,167.65,2.9827]
[1729468964134,5.88,167.77,167.65,3.01946043]
[1729468964336,5.88,167.77,167.64,5.88]
[1729468964645,5.88,167.77,167.64,8.87260371]
[1729468964839,3.4131,167.81,167.65,2.64]
[1729468965038,5.74,167.8,167.65,3.8989]
[1729468965337,5.74,167.84,167.65,3.8989]
[1729468965737,2.98,167.81,167.73,2.9812]
[1729468966540,2.98,167.81,167.73,6.01616313]
[1729468966748,5.74,167.84,167.73,3.03496313]
[1729468967043,6.5092,167.84,167.72,4.2404]
[1729468967731,2.9804,167.79,167.72,1.2589]
[1729468967935,5.74,167.84,167.72,1.2589]
[1729468968139,2.9801,167.81,167.73,2.6887]
[1729468968336,2.9801,167.81,167.73,5.70039477]
[1729468968535,2.9801,167.81,167.75,2.981]
[1729468968742,2.9803,167.8,167.73,5.70039477]
[1729468969041,2.9803,167.8,167.73,8.68159477]
[1729468969444,20.4376,167.91,167.73,5.70039477]
[1729468969638,5.74,167.88,167.73,5.70039477]
[1729468969941,5.74,167.88,167.73,11.44039477]
[1729468970342,2.9795,167.84,167.76,2.9807]
[1729468970641,5.74,167.88,167.73,11.44039477]
[1729468971938,2.9796,167.83,167.73,11.44039477]
[1729468972139,5.74,167.88,167.73,11.44039477]
[1729468972347,2.9805,167.79,167.73,8.68179477]
[1729468972540,5.74,167.82,167.73,4.36119477]
[1729468972742,5.74,167.81,167.73,3.01169477]
[1729468973141,2.9805,167.78,167.69,2.9819]
[1729468973446,23.66,167.81,167.65,2.6826]
[1729468973447,2.6067,167.8,167.65,2.6826]
[1729468973644,2.9817,167.72,167.66,2.9825]
[1729468974036,2.9817,167.72,167.65,2.6826]
[1729468974242,2.9817,167.72,167.67,2.9824]
[1729468974739,2.9817,167.72,167.65,2.6826]
[1729468974740,2.9817,167.72,167.66,2.9826]
[1729468974944,2.9814,167.73,167.66,2.9826]
[1729468977046,2.9807,167.77,167.7,2.9819]
[1729468977347,6.9906,167.8,167.65,2.6826]
[1729468977543,2.9809,167.76,167.65,8.4226]
[1729468977748,5.74,167.75,167.65,8.4226]
[1729468978047,5.74,167.74,167.65,8.4226]
[1729468978349,2.9817,167.72,167.65,11.4053]
[1729468979450,5.74,167.74,167.65,1.3447]
[1729468979650,5.74,167.74,167.64,2.99260371]
[1729468979849,2.0501,167.73,167.6,5.74]
[1729468980344,2.9826,167.67,167.6,8.7236]
[1729468980540,5.74,167.68,167.57,5.74]
[1729468981849,2.9828,167.65,167.59,2.9839]
[1729468982149,5.74,167.68,167.56,3.8631]
[1729468982646,2.9835,167.62,167.56,3.8631]
[1729468982842,8.7235,167.62,167.56,3.8631]
[1729468983051,8.7235,167.62,167.56,6.8475]
[1729468983745,5.74,167.62,167.58,2.9839]
[1729468984345,8.723,167.64,167.58,2.9839]
[1729468986251,5.74,167.64,167.58,2.9839]
[1729468986446,5.74,167.64,167.55,3.05202828]
[1729468986656,64.42,167.71,167.52,3.9522]
[1729468986956,2.9823,167.68,167.53,6.83693393]
[1729468987155,5.74,167.7,167.58,2.984]
[1729468987348,5.74,167.69,167.59,1.3332]
[1729468987549,2.9819,167.7,167.6,1.3366]
[1729468987859,5.74,167.7,167.6,2.7009]
[1729468988355,5.74,167.7,167.63,2.9832]
[1729468988550,5.74,167.7,167.63,5.91490303]
[1729468989344,5.74,167.7,167.64,2.983]
[1729468990253,5.74,167.7,167.65,2.98299504]
[1729468990656,5.74,167.7,167.64,2.983]
[1729468991053,5.74,167.7,167.6,2.7009]
[1729468991255,2.9825,167.67,167.61,2.9834]
[1729468991554,5.74,167.7,167.59,1.3332]
[1729468991758,2.983,167.64,167.58,2.984]
[1729468992052,5.74,167.64,167.53,3.858]
[1729468992260,2.9837,167.61,167.54,2.9847]
[1729468992951,2.9837,167.61,167.55,2.9845]
[1729468993160,5.74,167.64,167.53,6.87501139]
[1729468993547,1.3027,167.63,167.54,2.9846]
[1729468993950,2.9837,167.6,167.53,6.87501139]
[1729468994159,5.74,167.59,167.53,6.87501139]
[1729468994554,5.66,167.62,167.53,6.87501139]
[1729468994755,82.34,167.71,167.53,6.87501139]
[1729468994756,1.3027,167.7,167.53,6.87501139]
[1729468995059,5.66,167.69,167.53,6.87501139]
[1729468995849,2.9828,167.66,167.6,2.9836]
[1729468996055,5.66,167.69,167.53,6.87501139]
[1729468996451,2.9826,167.66,167.6,2.9836]
[1729468997561,8.6425,167.67,167.61,2.9835]
[1729469000665,64.42,167.71,167.63,2.9831]
[1729469000666,8.6421,167.69,167.63,2.9831]
[1729469000959,8.6421,167.69,167.64,2.94980509]
[1729469001360,8.6421,167.69,167.64,2.983]
[1729469001560,8.6421,167.69,167.64,6.00114841]
[1729469001759,2.9815,167.73,167.61,5.66]
[1729469002060,5.66,167.74,167.62,9.5223]
[1729469002260,2.9819,167.71,167.63,5.66]
[1729469002469,5.66,167.74,167.63,8.6431]
[1729469002760,23.58,167.74,167.62,2.92413904]
[1729469002959,2.9829,167.65,167.56,5.66]
[1729469003166,5.66,167.73,167.56,5.66]
[1729469003554,2.9824,167.68,167.61,2.9834]
[1729469003764,5.66,167.68,167.62,2.91687703]
[1729469004064,2.0629,167.76,167.56,5.66]
[1729469004065,2.982,167.7,167.64,2.983]
[1729469005062,5.66,167.71,167.62,2.99534866]
[1729469005259,5.66,167.71,167.57,1.3041]